fUST/lending_fUST_20250520
["ID","MTS","AMOUNT","RATE_DAILY","PERIOD"]
[361711143,1747713039409,-702.51,0.0001726,2]
[361711144,1747713039419,-489.7,0.0001726,2]
[361711145,1747713039429,-551.28,0.0001726,2]
[361711146,1747713039438,-430.0,0.0001726,2]
[361711147,1747713039448,-812.8,0.0001726,2]
[361711148,1747713039458,-150.73620621,0.0001726,2]
[361711149,1747713039468,-430.0,0.0001726,2]
[361711150,1747713039483,-430.0,0.0001726,2]
[361711151,1747713039494,-430.0,0.0001726,2]
[361711152,1747713039504,-456.27,0.0001726,2]
[361711153,1747713039515,-430.0,0.0001726,2]
[361711154,1747713039524,-708.31,0.0001726,2]
[361711155,1747713039537,-743.53,0.0001726,2]
[361711156,1747713039550,-430.0,0.0001726,2]
[361711157,1747713039563,-530.76,0.0001726,2]
[361711158,1747713039575,-430.0,0.0001726,2]
[361711159,1747713039587,-430.0,0.0001726,2]
[361711160,1747713039598,-431.7,0.0001726,2]
[361711161,1747713039610,-809.08,0.0001726,2]
[361711162,1747713039622,-549.72,0.0001726,2]
[361711163,1747713039632,-538.38,0.0001726,2]
[361711164,1747713039642,-495.89,0.0001726,2]
[361711165,1747713039655,-430.0,0.0001726,2]
[361711166,1747713039667,-430.0,0.0001726,2]
[361711167,1747713039679,-1603.36,0.0001726,2]
[361711168,1747713039689,-430.0,0.0001726,2]
[361711169,1747713039702,-1166.41,0.0001726,2]
[361711170,1747713039713,-430.0,0.0001726,2]
[361711171,1747713039725,-430.0,0.0001726,2]
[361711172,1747713039736,-430.0,0.0001726,2]
[361711173,1747713039747,-430.0,0.0001726,2]
[361711174,1747713039758,-430.0,0.0001726,2]
[361711175,1747713039771,-430.0,0.0001726,2]
[361711176,1747713039782,-600.97,0.0001726,2]
[361711177,1747713039794,-430.0,0.0001726,2]
[361711178,1747713039804,-823.28,0.0001726,2]
[361711179,1747713039816,-430.0,0.0001726,2]
[361711180,1747713039829,-430.0,0.0001726,2]
[361711181,1747713039839,-430.0,0.0001726,2]
[361711182,1747713039848,-681.83,0.0001726,2]
[361711183,1747713039858,-430.0,0.0001726,2]
[361711184,1747713039867,-491.15,0.0001726,2]
[361711185,1747713039877,-430.0,0.0001726,2]
[361711186,1747713039886,-448.34,0.0001726,2]
[361711187,1747713039896,-620.8,0.0001726,2]
[361711188,1747713039905,-891.46,0.0001726,2]
[361711189,1747713039916,-525.03,0.0001726,2]
[361711190,1747713039927,-430.0,0.0001726,2]
[361711191,1747713039937,-700.44,0.0001726,2]
[361711192,1747713039948,-430.0,0.0001726,2]
[361711193,1747713039959,-816.67,0.0001726,2]
[361711194,1747713039970,-768.87,0.0001726,2]
[361711196,1747713039980,-557.59,0.0001726,2]
[361711198,1747713039990,-456.81,0.0001726,2]
[361711199,1747713040002,-430.0,0.0001726,2]
[361711201,1747713040014,-430.0,0.0001726,2]
[361711202,1747713040024,-538.4,0.0001726,2]
[361711203,1747713040034,-151.0,0.0001726,2]
[361711204,1747713040045,-516.12,0.0001726,2]
[361711205,1747713040055,-430.0,0.0001726,2]
[361711206,1747713040066,-430.0,0.0001726,2]
[361711207,1747713040076,-430.0,0.0001726,2]
[361711208,1747713040086,-430.0,0.0001726,2]
[361711209,1747713040098,-430.0,0.0001726,2]
[361711210,1747713040109,-516.83925282,0.0001726,2]
[361711211,1747713040120,-430.0,0.0001726,2]
[361711212,1747713040131,-430.0,0.0001726,2]
[361711213,1747713040142,-151.0,0.0001726,2]
[361711214,1747713040153,-430.0,0.0001726,2]
[361711215,1747713040164,-430.0,0.0001726,2]
[361711216,1747713040175,-430.0,0.0001726,2]
[361711217,1747713040186,-430.0,0.0001726,2]
[361711218,1747713040198,-1380.67,0.0001726,2]
[361711219,1747713040208,-430.0,0.0001726,2]
[361711220,1747713040218,-489.35,0.0001726,2]
[361711221,1747713040230,-430.0,0.0001726,2]
[361711223,1747713040240,-430.0,0.0001726,2]
[361711225,1747713040251,-430.0,0.0001726,2]
[361711227,1747713040261,-6515.42,0.0001726,2]
[361711229,1747713040272,-430.0,0.0001726,2]
[361711231,1747713040283,-1165.12,0.0001726,2]
[361711233,1747713040294,-592.31,0.0001726,2]
[361711234,1747713040304,-430.0,0.0001726,2]
[361711235,1747713040315,-430.0,0.0001726,2]
[361711236,1747713040325,-771.17,0.0001726,2]
[361711237,1747713040336,-1761.38,0.0001726,2]
[361711238,1747713040347,-1084.62,0.0001726,2]
[361711239,1747713040358,-549.1139632,0.0001726,2]
[361711240,1747713040368,-1036.01,0.0001726,2]
[361711241,1747713040379,-496.81,0.0001726,2]
[361711242,1747713040389,-455.32,0.0001726,2]
[361711243,1747713040400,-430.0,0.0001726,2]
[361711244,1747713040411,-1192.45,0.0001726,2]
[361711245,1747713040423,-1173.75,0.0001726,2]
[361711246,1747713040434,-1425.12,0.0001726,2]
[361711247,1747713040444,-430.0,0.0001726,2]
[361711248,1747713040454,-430.0,0.0001726,2]
[361711249,1747713040465,-1724.93,0.0001726,2]
[361711250,1747713040478,-430.0,0.0001726,2]
[361711251,1747713040488,-3618.67,0.0001726,2]
[361711252,1747713040498,-433.85,0.0001726,2]
[361711253,1747713040508,-430.0,0.0001726,2]
[361711254,1747713040521,-430.0,0.0001726,2]
[361711255,1747713040531,-430.0,0.0001726,2]
[361711256,1747713040541,-430.0,0.0001726,2]
[361711257,1747713040553,-430.0,0.0001726,2]
[361711258,1747713040563,-718.03,0.0001726,2]
[361711259,1747713040573,-430.0,0.0001726,2]
[361711260,1747713040584,-6252.42,0.0001726,2]
[361711261,1747713040596,-761.24,0.0001726,2]
[361711262,1747713040606,-151.0,0.0001726,2]
[361711263,1747713040617,-430.0,0.0001726,2]
[361711264,1747713040626,-430.0,0.0001726,2]
[361711265,1747713040639,-430.0,0.0001726,2]
[361711266,1747713040651,-698.79,0.0001726,2]
[361711267,1747713040665,-430.0,0.0001726,2]
[361711268,1747713040675,-1795.12,0.0001726,2]
[361711269,1747713040686,-2218.6,0.0001726,2]
[361711270,1747713040697,-616.55,0.0001726,2]
[361711271,1747713040709,-430.0,0.0001726,2]
[361711272,1747713040719,-430.0,0.0001726,2]
[361711273,1747713040730,-550.33,0.0001726,2]
[361711274,1747713040741,-430.0,0.0001726,2]
[361711275,1747713040752,-434.48,0.0001726,2]
[361711276,1747713040762,-488.48,0.0001726,2]
[361711277,1747713040772,-448.88,0.0001726,2]
[361711278,1747713040782,-430.0,0.0001726,2]
[361711279,1747713040792,-2459.46,0.0001726,2]
[361711280,1747713040803,-430.0,0.0001726,2]
[361711281,1747713040814,-430.0,0.0001726,2]
[361711282,1747713040825,-847.67,0.0001726,2]
[361711283,1747713040835,-1004.52,0.0001726,2]
[361711284,1747713040846,-430.0,0.0001726,2]
[361711285,1747713040856,-900.08,0.0001726,2]
[361711286,1747713040866,-430.0,0.0001726,2]
[361711287,1747713040877,-1526.68,0.0001726,2]
[361711288,1747713040887,-1174.84,0.0001726,2]
[361711289,1747713040898,-1584.87,0.0001726,2]
[361711290,1747713040910,-1572.9,0.0001726,2]
[361711291,1747713040919,-430.0,0.0001726,2]
[361711292,1747713040929,-1024.76,0.0001726,2]
[361711293,1747713040940,-1163.68,0.0001726,2]
[361711294,1747713040950,-2192.94,0.0001726,2]
[361711295,1747713040962,-844.44,0.0001726,2]
[361711296,1747713040973,-1760.99,0.0001726,2]
[361711297,1747713040983,-430.0,0.0001726,2]
[361711298,1747713040995,-8621.06,0.0001726,2]
[361711299,1747713041006,-3287.11,0.0001726,2]
[361711300,1747713041017,-801.5,0.0001726,2]
[361711301,1747713041029,-1011.39,0.0001726,2]
[361711302,1747713041039,-1709.67,0.0001726,2]
[361711303,1747713041048,-1694.47,0.0001726,2]
[361711304,1747713041058,-589.54,0.0001726,2]
[361711305,1747713041069,-564.12,0.0001726,2]
[361711306,1747713041079,-2136.79,0.0001726,2]
[361711307,1747713041089,-2358.4,0.0001726,2]
[361711308,1747713041101,-430.0,0.0001726,2]
[361711309,1747713041112,-1010.42,0.0001726,2]
[361711310,1747713041122,-430.0,0.0001726,2]
[361711311,1747713041132,-430.0,0.0001726,2]
[361711312,1747713041143,-1002.55,0.0001726,2]
[361711313,1747713041154,-8302.23,0.0001726,2]
[361711314,1747713041165,-1036.89,0.0001726,2]
[361711315,1747713041177,-4388.95,0.0001726,2]
[361711316,1747713041187,-151.0,0.0001726,2]
[361711317,1747713041199,-223.56994016,0.0001726,2]
[361711318,1747713041209,-430.0,0.0001726,2]
[361711319,1747713041219,-547.42,0.0001726,2]
[361711320,1747713041229,-406.39747164,0.0001726,2]
[361711321,1747713041239,-430.0,0.0001726,2]
[361711322,1747713041249,-1488.21,0.0001726,2]
[361711323,1747713041259,-2034.8,0.0001726,2]
[361711324,1747713041268,-1126.06,0.0001726,2]
[361711325,1747713041278,-1672.43,0.0001726,2]
[361711326,1747713041288,-430.0,0.0001726,2]
[361711327,1747713041299,-461.16,0.0001726,2]
[361711328,1747713041310,-430.0,0.0001726,2]
[361711329,1747713041320,-1903.85,0.0001726,2]
[361711330,1747713041330,-430.0,0.0001726,2]
[361711331,1747713041339,-435.08,0.0001726,2]
[361711332,1747713041349,-919.29,0.0001726,2]
[361711333,1747713041359,-644.18,0.0001726,2]
[361711334,1747713041369,-1521.63,0.0001726,2]
[361711335,1747713041378,-1999.56,0.0001726,2]
[361711336,1747713041389,-2538.34,0.0001726,2]
[361711337,1747713041399,-3750.35,0.0001726,2]
[361711338,1747713041409,-501.2794407,0.0001743,2]
[361711339,1747713041420,-500.0,0.0001743,2]
[361711340,1747713041430,-500.0,0.0001743,2]
[361711341,1747713041442,-500.0,0.0001743,2]
[361711342,1747713041453,-500.0,0.0001743,2]
[361711343,1747713041466,-500.0,0.0001743,2]
[361711344,1747713041480,-500.0,0.0001743,2]
[361711345,1747713041491,-253.44514776,0.0001743,2]
[361711346,1747713041501,-500.0,0.0001743,2]
[361711347,1747713041512,-500.0,0.0001743,2]
[361711348,1747713041524,-502.8240996,0.0001743,2]
[361711349,1747713041535,-500.0,0.0001743,2]
[361711350,1747713041547,-500.0,0.0001743,2]
[361711351,1747713041560,-500.0,0.0001743,2]
[361711352,1747713041570,-500.0,0.0001744,2]
[361711353,1747713041580,-400.24063113,0.0001744,2]
[361711354,1747713041591,-500.0,0.0001744,2]
[361711355,1747713041601,-500.0,0.0001745,2]
[361711356,1747713041611,-500.0,0.0001745,2]
[361711357,1747713041622,-500.0,0.0001745,2]
[361711358,1747713041632,-3221.39251632,0.00017452,2]
[361711359,1747713041643,-420.0,0.00017458,2]
[361711360,1747713041655,-500.0,0.00017468,2]
[361711361,1747713041664,-500.0,0.00017468,2]
[361711362,1747713041674,-508.57873329,0.00017468,2]
[361711363,1747713041683,-500.0,0.00017468,2]
[361711364,1747713041693,-500.0,0.00017468,2]
[361711365,1747713041702,-430.0,0.00017534,2]
[361711366,1747713041712,-430.0,0.00017534,2]
[361711367,1747713041721,-430.0,0.00017534,2]
[361711368,1747713041730,-430.0,0.00017534,2]
[361711369,1747713041740,-430.0,0.00017534,2]
[361711370,1747713041749,-702.51,0.00017534,2]
[361711371,1747713041759,-151.0,0.00017534,2]
[361711372,1747713041769,-489.7,0.00017534,2]
[361711373,1747713041778,-551.28,0.00017534,2]
[361711374,1747713041788,-430.0,0.00017534,2]
[361711375,1747713041798,-812.8,0.00017534,2]
[361711376,1747713041807,-430.0,0.00017534,2]
[361711377,1747713041817,-430.0,0.00017534,2]
[361711378,1747713041826,-430.0,0.00017534,2]
[361711379,1747713041836,-456.27,0.00017534,2]
[361711380,1747713041846,-430.0,0.00017534,2]
[361711381,1747713041856,-708.31,0.00017534,2]
[361711382,1747713041866,-743.53,0.00017534,2]
[361711383,1747713041876,-430.0,0.00017534,2]
[361711384,1747713041887,-530.76,0.00017534,2]
[361711385,1747713041898,-430.0,0.00017534,2]
[361711386,1747713041908,-430.0,0.00017534,2]
[361711387,1747713041919,-431.7,0.00017534,2]
[361711388,1747713041928,-809.08,0.00017534,2]
[361711389,1747713041938,-549.72,0.00017534,2]
[361711390,1747713041950,-538.38,0.00017534,2]
[361711391,1747713041961,-495.89,0.00017534,2]
[361711392,1747713041972,-430.0,0.00017534,2]
[361711393,1747713041982,-430.0,0.00017534,2]
[361711394,1747713041991,-1603.36,0.00017534,2]
[361711395,1747713042000,-430.0,0.00017534,2]
[361711396,1747713042010,-1166.41,0.00017534,2]
[361711397,1747713042019,-430.0,0.00017534,2]
[361711398,1747713042029,-430.0,0.00017534,2]
[361711399,1747713042038,-223.37212857,0.00017534,2]
[361711400,1747713042048,-430.0,0.00017534,2]
[361711401,1747713042057,-430.0,0.00017534,2]
[361711402,1747713042067,-430.0,0.00017534,2]
[361711403,1747713042077,-600.97,0.00017534,2]
[361711404,1747713042087,-430.0,0.00017534,2]
[361711405,1747713042099,-823.28,0.00017534,2]
[361711406,1747713042110,-430.0,0.00017534,2]
[361711407,1747713042121,-430.0,0.00017534,2]
[361711408,1747713042132,-430.0,0.00017534,2]
[361711409,1747713042143,-681.83,0.00017534,2]
[361711410,1747713042296,-430.0,0.00017534,2]
[361711411,1747713042307,-491.15,0.00017534,2]
[361711412,1747713042318,-430.0,0.00017534,2]
[361711413,1747713042328,-448.34,0.00017534,2]
[361711414,1747713042338,-620.8,0.00017534,2]
[361711415,1747713042348,-891.46,0.00017534,2]
[361711416,1747713042359,-525.03,0.00017534,2]
[361711417,1747713042369,-430.0,0.00017534,2]
[361711418,1747713042379,-700.44,0.00017534,2]
[361711419,1747713042389,-430.0,0.00017534,2]
[361711420,1747713042399,-816.67,0.00017534,2]
[361711421,1747713042410,-768.87,0.00017534,2]
[361711422,1747713042419,-557.59,0.00017534,2]
[361711423,1747713042429,-456.81,0.00017534,2]
[361711424,1747713042440,-430.0,0.00017534,2]
[361711425,1747713042449,-430.0,0.00017534,2]
[361711426,1747713042460,-538.4,0.00017534,2]
[361711427,1747713042469,-151.0,0.00017534,2]
[361711428,1747713042483,-516.12,0.00017534,2]
[361711429,1747713042493,-430.0,0.00017534,2]
[361711430,1747713042502,-430.0,0.00017534,2]
[361711431,1747713042512,-430.0,0.00017534,2]
[361711432,1747713042523,-430.0,0.00017534,2]
[361711433,1747713042534,-430.0,0.00017534,2]
[361711434,1747713042544,-430.0,0.00017534,2]
[361711435,1747713042554,-430.0,0.00017534,2]
[361711436,1747713042564,-151.0,0.00017534,2]
[361711437,1747713042575,-430.0,0.00017534,2]
[361711438,1747713042584,-430.0,0.00017534,2]
[361711439,1747713042594,-430.0,0.00017534,2]
[361711440,1747713042605,-430.0,0.00017534,2]
[361711441,1747713042615,-1380.67,0.00017534,2]
[361711442,1747713042626,-430.0,0.00017534,2]
[361711443,1747713042637,-489.35,0.00017534,2]
[361711444,1747713042647,-430.0,0.00017534,2]
[361711445,1747713042658,-370.10855707,0.00017534,2]
[361711446,1747713042669,-430.0,0.00017534,2]
[361711447,1747713042680,-6515.42,0.00017534,2]
[361711448,1747713042690,-560.49878593,0.00017534,2]
[361711449,1747713042699,-1165.12,0.00017534,2]
[361711450,1747713042710,-592.31,0.00017534,2]
[361711451,1747713042721,-430.0,0.00017534,2]
[361711452,1747713042731,-430.0,0.00017534,2]
[361711453,1747713042742,-771.17,0.00017534,2]
[361711454,1747713042751,-1761.38,0.00017534,2]
[361711455,1747713042761,-1084.62,0.00017534,2]
[361711457,1747713042771,-1036.01,0.00017534,2]
[361711459,1747713042782,-496.81,0.00017534,2]
[361711460,1747713042792,-455.32,0.00017534,2]
[361711461,1747713042802,-430.0,0.00017534,2]
[361711462,1747713042812,-1192.45,0.00017534,2]
[361711463,1747713042822,-1173.75,0.00017534,2]
[361711464,1747713042832,-1425.12,0.00017534,2]
[361711465,1747713042842,-430.0,0.00017534,2]
[361711466,1747713042851,-430.0,0.00017534,2]
[361711467,1747713042860,-1724.93,0.00017534,2]
[361711468,1747713042870,-430.0,0.00017534,2]
[361711469,1747713042879,-3618.67,0.00017534,2]
[361711470,1747713042889,-433.85,0.00017534,2]
[361711471,1747713042899,-430.0,0.00017534,2]
[361711472,1747713042909,-430.0,0.00017534,2]
[361711474,1747713042918,-430.0,0.00017534,2]
[361711475,1747713042928,-430.0,0.00017534,2]
[361711476,1747713042939,-430.0,0.00017534,2]
[361711477,1747713042949,-718.03,0.00017534,2]
[361711478,1747713042959,-430.0,0.00017534,2]
[361711479,1747713042970,-6252.42,0.00017534,2]
[361711480,1747713042981,-761.24,0.00017534,2]
[361711481,1747713042991,-151.0,0.00017534,2]
[361711482,1747713043001,-430.0,0.00017534,2]
[361711483,1747713043010,-430.0,0.00017534,2]
[361711484,1747713043022,-430.0,0.00017534,2]
[361711485,1747713043032,-524.67442165,0.00017534,2]
[361711501,1747713046379,-488.71,0.00016438,2]
[361711502,1747713046389,-430.0,0.00016438,2]
[361711503,1747713046400,-430.0,0.00016712,2]
[361711504,1747713046409,-488.71,0.00016712,2]
[361711505,1747713046420,-430.0,0.00016712,2]
[361711506,1747713046429,-430.0,0.00016986,2]
[361711507,1747713046439,-488.71,0.00016986,2]
[361711508,1747713046450,-430.0,0.00016986,2]
[361711509,1747713046460,-430.0,0.0001726,2]
[361711510,1747713046474,-488.71,0.0001726,2]
[361711511,1747713046485,-430.0,0.0001726,2]
[361711512,1747713046495,-174.11557835,0.00017534,2]
[361711513,1747713046506,-430.0,0.00017534,2]
[361711514,1747713046519,-1795.12,0.00017534,2]
[361711515,1747713046529,-2218.6,0.00017534,2]
[361711516,1747713046539,-616.55,0.00017534,2]
[361711517,1747713046553,-430.0,0.00017534,2]
[361711518,1747713046563,-430.0,0.00017534,2]
[361711519,1747713046573,-550.33,0.00017534,2]
[361711520,1747713046582,-430.0,0.00017534,2]
[361711521,1747713046593,-434.48,0.00017534,2]
[361711522,1747713046604,-488.48,0.00017534,2]
[361711523,1747713046616,-66.57417001,0.00017534,2]
[361711560,1747714232295,-193.8659098,0.00015348,2]
[361711561,1747714232306,-180.3557677,0.00015348,2]
[361711562,1747714232317,-1979.3556557,0.00015687,2]
[361711563,1747714232328,-279.90803092,0.00015999,2]
[361711564,1747714232346,-20.09196908,0.00015999,2]
[361711565,1747714232356,-300.0,0.00015999,2]
[361711566,1747714232367,-155.36989322,0.00016,3]
[361711567,1747714232380,-4734.9539325,0.00016,3]
[361711568,1747714232399,-3670.7451688,0.00016,3]
[361711585,1747714238198,-292.7075,0.00013699,2]
[361711586,1747714238208,-1014.04516778,0.00016,3]
[361711587,1747714238222,-674.96018594,0.00016,3]
[361711588,1747714238232,-314.48519801,0.00016,3]
[361711589,1747714238243,-998.82236359,0.00016,3]
[361711590,1747714238255,-2670.31293025,0.00016,3]
[361711591,1747714238268,-9970.35513689,0.00016,3]
[361711592,1747714238279,-212.38718278,0.00016,3]
[361711593,1747714238291,-215.235962,0.00016012,2]
[361711594,1747714238300,-190.33978076,0.00016338,2]
[361711595,1747714238309,-846.87,0.00016428,3]
[361711596,1747714238321,-500.0,0.00016437,2]
[361711597,1747714238332,-500.0,0.00016437,2]
[361711598,1747714238344,-191.67145433,0.00016437,2]
[361711599,1747714238354,-500.0,0.00016437,2]
[361711600,1747714238365,-500.0,0.00016437,2]
[361711601,1747714238374,-500.0,0.00016437,2]
[361711602,1747714238384,-500.0,0.00016437,2]
[361711603,1747714238393,-500.0,0.00016437,2]
[361711604,1747714238403,-500.0,0.00016437,2]
[361711605,1747714238412,-500.0,0.00016437,2]
[361711606,1747714238421,-500.0,0.00016437,2]
[361711607,1747714238431,-500.0,0.00016437,2]
[361711608,1747714238440,-500.0,0.00016437,2]
[361711609,1747714238450,-500.0,0.00016437,2]
[361711610,1747714238459,-500.0,0.00016437,2]
[361711611,1747714238469,-500.0,0.00016437,2]
[361711612,1747714238478,-93.47114556,0.00016437,2]
[361711613,1747714238502,-242.78159577,0.00016437,2]
[361711614,1747714238512,-500.0,0.00016437,2]
[361711615,1747714238522,-500.0,0.00016437,2]
[361711616,1747714238531,-500.0,0.00016437,2]
[361711617,1747714238541,-500.0,0.00016437,2]
[361711618,1747714238551,-500.0,0.00016437,2]
[361711619,1747714238561,-500.0,0.00016437,2]
[361711620,1747714238571,-500.0,0.00016437,2]
[361711621,1747714238582,-500.0,0.00016437,2]
[361711622,1747714238593,-500.0,0.00016437,2]
[361711623,1747714238604,-500.0,0.00016437,2]
[361711624,1747714238615,-500.0,0.00016437,2]
[361711625,1747714238625,-500.0,0.00016437,2]
[361711626,1747714238636,-251.83847364,0.00016437,2]
[361711627,1747714238647,-500.0,0.00016437,2]
[361711628,1747714238656,-500.0,0.00016437,2]
[361711629,1747714238666,-500.0,0.00016437,2]
[361711630,1747714238675,-259.58363792,0.00016437,2]
[361711631,1747714238685,-160.0,0.00016437,2]
[361711632,1747714238696,-500.0,0.00016437,2]
[361711633,1747714238706,-500.0,0.00016437,2]
[361711634,1747714238715,-430.0,0.00016438,2]
[361711635,1747714238725,-430.0,0.00016438,2]
[361711636,1747714238929,-430.0,0.00016438,2]
[361711637,1747714238939,-430.0,0.00016438,2]
[361711638,1747714238949,-647.20482933,0.00016438,2]
[361711639,1747714238959,-450.0,0.00016438,2]
[361711640,1747714238969,-430.0,0.00016438,2]
[361711641,1747714238979,-430.0,0.00016438,2]
[361711642,1747714238988,-430.0,0.00016438,2]
[361711643,1747714238998,-430.0,0.00016438,2]
[361711644,1747714239008,-450.0,0.00016438,2]
[361711645,1747714239017,-400.0,0.00016438,2]
[361711646,1747714239042,-415.65386819,0.00016438,2]
[361711647,1747714239053,-426.80223193,0.00016438,2]
[361711648,1747714239063,-234.00821005,0.00016438,2]
[361711649,1747714239077,-402.63106356,0.00016438,2]
[361711650,1747714239088,-430.0,0.00016438,2]
[361711651,1747714239099,-430.0,0.00016438,2]
[361711652,1747714239110,-627.43,0.00016438,2]
[361711653,1747714239122,-430.0,0.00016438,2]
[361711654,1747714239132,-450.0,0.00016438,2]
[361711655,1747714239142,-275.63735612,0.00016438,2]
[361711656,1747714239152,-367.46764265,0.00016438,2]
[361711657,1747714239162,-216.66977593,0.00016438,2]
[361711658,1747714239173,-430.0,0.00016438,2]
[361711659,1747714239184,-430.0,0.00016438,2]
[361711660,1747714239194,-430.0,0.00016438,2]
[361711661,1747714239205,-430.0,0.00016438,2]
[361711662,1747714239215,-588.63,0.00016438,2]
[361711663,1747714239225,-430.0,0.00016438,2]
[361711664,1747714239235,-450.0,0.00016438,2]
[361711665,1747714239246,-430.0,0.00016438,2]
[361711666,1747714239256,-430.0,0.00016438,2]
[361711667,1747714239267,-430.0,0.00016438,2]
[361711668,1747714239277,-640.52,0.00016438,2]
[361711669,1747714239288,-488.34977376,0.00016438,2]
[361711670,1747714239298,-430.0,0.00016438,2]
[361711671,1747714239308,-430.0,0.00016438,2]
[361711672,1747714239318,-430.0,0.00016438,2]
[361711673,1747714239328,-487.66,0.00016438,2]
[361711674,1747714239338,-1269.33,0.00016438,2]
[361711675,1747714239348,-430.0,0.00016438,2]
[361711676,1747714239358,-352.85883037,0.00016438,2]
[361711677,1747714239368,-450.0,0.00016438,2]
[361711678,1747714239378,-923.41,0.00016438,2]
[361711679,1747714239389,-430.0,0.00016438,2]
[361711680,1747714239400,-614.71,0.00016438,2]
[361711681,1747714239410,-453.95,0.00016438,2]
[361711682,1747714239420,-430.0,0.00016438,2]
[361711683,1747714239431,-430.0,0.00016438,2]
[361711684,1747714239442,-430.0,0.00016438,2]
[361711685,1747714239451,-430.0,0.00016438,2]
[361711686,1747714239462,-430.0,0.00016438,2]
[361711687,1747714239475,-265.5705496,0.00016438,2]
[361711688,1747714239487,-430.0,0.00016438,2]
[361711689,1747714239496,-450.0,0.00016438,2]
[361711690,1747714239506,-651.77,0.00016438,2]
[361711691,1747714239516,-430.0,0.00016438,2]
[361711692,1747714239526,-430.0,0.00016438,2]
[361711693,1747714239536,-430.0,0.00016438,2]
[361711694,1747714239546,-430.0,0.00016438,2]
[361711695,1747714239557,-430.0,0.00016438,2]
[361711696,1747714239567,-430.0,0.00016438,2]
[361711697,1747714239578,-80.92446208,0.00016438,2]
[361711758,1747714240819,-349.07553792,0.00016438,2]
[361711760,1747714240829,-430.0,0.00016438,2]
[361711762,1747714240839,-20.92446208,0.00016438,2]
[361711792,1747714243491,-552.33553792,0.00016438,2]
[361711793,1747714243500,-704.75391645,0.00016438,2]
[361711848,1747715432486,-287.90647,0.00013699,2]
[361711851,1747715432496,-488.74977138,0.00016292,2]
[361711852,1747715432506,-5301.35211943,0.0001643,2]
[361711855,1747715432518,-605.45,0.0001643,2]
[361711857,1747715432531,-385.83333708,0.0001643,2]
[361711858,1747715432544,-481.84569023,0.0001643,2]
[361711861,1747715438474,-2376.09999,0.0001643,2]
[361711863,1747715438486,-1161.3,0.0001643,2]
[361712032,1747715443629,-633.7199999,0.0001643,2]
[361712047,1747715446842,-81150.31882597,0.0001643,2]
[361712048,1747715446854,-14757.22919749,0.0001643,2]
[361712096,1747716140083,-2655.0,0.00014895,2]
[361712100,1747716207383,-196.337772,0.00014843,2]
[361712101,1747716207406,-114.2367,0.00014895,2]
[361712102,1747716207430,-119.425528,0.00014928,2]
[361712103,1747716273138,-7436.0,0.00014908,2]
[361712139,1747716632760,-284.023298,0.00013699,2]
[361712141,1747716632771,-2564.0,0.00014908,2]
[361712143,1747716632781,-77.0209583,0.00014928,2]